Workbook

Sheet Титул
A1: Утверждаю
A2: Директор ОГБПОУ "ДМК"
A5: И.А.Казаченко | O5: УЧЕБНЫЙ ПЛАН
O7: программы подготовки специалистов среднего звена
A10: Приказ № 39-у от 28.02.2025
O11: Областное государственное бюджетное профессиональное образовательное учреждение "Димитровградский музыкальный колледж"
O15: наименование образовательного учреждения (организации)
A16: Рассмотрено Педагогическим Советом Протокол № 04 от 26.02.2025
O18: по специальности среднего профессионального образования
O20: 53.02.06 | U20: Хоровое дирижирование
O21: код | U21: наименование специальности
O22: по программе углубленной подготовки | AE22: на базе | AI22: основного общего образования
O24: квалификация | U24: Дирижер хора, преподаватель
O26: форма обучения | U26: Очная
O28: нормативный срок освоения ППССЗ | AB28: 3г 10м | AI28: год начала подготовки по УП | AS28: 2025
O30: профиль получаемого профессионального образования | AI30: Искусство и культура 53.00.00 Музыкальное искусство
AI31: при реализации программы среднего (полного) общего образования
O33: Приказ об утверждении ФГОС | Z33: от | AB33: 2021-05-17 | AG33: № | AI33: 253

Sheet сводные данные о бюджете времен
A1: 2 Сводные данные по бюджету времени
A2: Курс | B2: Обучение по дисциплинам и междисциплинарным курсам | T2: Промежуточная аттестация | AC2: Практики | AT2: ГИА | AZ2: Каникулы | BC2: Всего
AC3: Учебная практика | AF3: Производственная практика (по профилю специальности) | AM3: Производственная практика (преддипломная) | AT3: Подго- товка | AW3: Прове- дение
B4: Всего | H4: 1 сем | N4: 2 сем | T4: Всего | W4: 1 сем | Z4: 2 сем | AC4: Всего | AF4: Всего | AI4: 1 сем | AK4: 2 сем | AM4: Всего | AP4: 1 сем | AR4: 2 сем
B5: нед. | E5: час. | H5: нед. | K5: час. | N5: нед. | Q5: час. | T5: нед. | W5: нед. | Z5: нед. | AC5: нед. | AF5: нед. | AI5: нед. | AK5: нед. | AM5: нед. | AP5: нед. | AR5: нед. | AT5: нед. | AW5: нед. | AZ5: нед. | BC5: нед.
A6: I | B6: 36 | E6: 1942/1296 | H6: 16 | K6: 864/576 | N6: 20 | Q6: 1078/720 | T6: 4 | W6: 2 | Z6: 2 | AF6: 1 | AK6: 1 | AZ6: 2 | BC6: 43
A7: II | B7: 36 | E7: 1945/1296 | H7: 16 | K7: 864/576 | N7: 20 | Q7: 1081/720 | T7: 4 | W7: 2 | Z7: 2 | AF7: 2 | AK7: 2 | AZ7: 11 | BC7: 53
A8: III | B8: 36 | E8: 1945/1296 | H8: 16 | K8: 864/576 | N8: 20 | Q8: 1081/720 | T8: 4 | W8: 2 | Z8: 2 | AF8: 2 | AK8: 2 | AZ8: 10 | BC8: 52
A9: IV | B9: 35 | E9: 1890/1260 | H9: 16 | K9: 864/576 | N9: 19 | Q9: 1026/684 | T9: 1 | W9: 1 | AM9: 1 | AP9: 1 | AT9: 1 | AW9: 3 | AZ9: 10 | BC9: 51
A10: Всего | B10: 143 | E10: 7722/5148 | K10: 3456/2304 | Q10: 4266/2844 | T10: 13 | AC10: 19 | AF10: 5 | AM10: 1 | AT10: 1 | AW10: 3 | AZ10: 33 | BC10: 199

Sheet План
A1: Индекс | B1: Наименование циклов, разделов, дисциплин, профессиональных модулей, МДК, практик | C1: Групповые, мелкогрупповые, индивидуальные формы занятий | D1: Формы промежуточной аттестации | K1: Учебная нагрузка обучающихся, ч. | U1: Распределение по курсам и семестрам | EC1: Максимальная учебная нагрузка
U2: Курс 1 | AI2: Курс 2 | AW2: Курс 3 | BK2: Курс 4 | BY2: Курс 5 | CM2: Курс 6 | DA2: Курс 7 | DO2: Курс 8
D3: Экзамены | E3: Зачеты | F3: Диффер. зачеты | G3: Курсовые проекты (работы) | H3: Итоговые письм. КР | I3: Домашние КР | J3: контрольная работа | L3: Максимальная | N3: Самостоятельная | P3: Обязательная | U3: Семестр 1 | AB3: Семестр 2 | AI3: Семестр 3 | AP3: Семестр 4 | AW3: Семестр 5 | BD3: Семестр 6 | BK3: Семестр 7 | BR3: Семестр 8 | BY3: Семестр 9 | CF3: Семестр A | CM3: Семестр B | CT3: Семестр C | DA3: Семестр D | DH3: Семестр E | DO3: Семестр F | DV3: Семестр G
P4: Всего | Q4: в том числе | U4: 16 нед | AB4: 20 нед | AI4: 16 нед | AP4: 20 нед | AW4: 16 нед | BD4: 20 нед | BK4: 16 нед | BR4: 19 нед | BY4: 26 нед | CF4: 26 нед | CM4: 26 нед | CT4: 26 нед | DA4: 26 нед | DH4: 26 нед | DO4: нед | DV4: нед
Q5: Теор. обучение | R5: Лаб. и пр. занятия | T5: Курс. проект. | U5: Максим. | V5: Самост. | W5: Всего | X5: в том числе | AB5: Максим. | AC5: Самост. | AD5: Всего | AE5: в том числе | AI5: Максим. | AJ5: Самост. | AK5: Всего | AL5: в том числе | AP5: Максим. | AQ5: Самост. | AR5: Всего | AS5: в том числе | AW5: Максим. | AX5: Самост. | AY5: Всего | AZ5: в том числе | BD5: Максим. | BE5: Самост. | BF5: Всего | BG5: в том числе | BK5: Максим. | BL5: Самост. | BM5: Всего | BN5: в том числе | BR5: Максим. | BS5: Самост. | BT5: Всего | BU5: в том числе | BY5: Максим. | BZ5: Самост. | CA5: Всего | CB5: в том числе | CF5: Максим. | CG5: Самост. | CH5: Всего | CI5: в том числе | CM5: Максим. | CN5: Самост. | CO5: Всего | CP5: в том числе | CT5: Максим. | CU5: Самост. | CV5: Всего | CW5: в том числе | DA5: Максим. | DB5: Самост. | DC5: Всего | DD5: в том числе | DH5: Максим. | DI5: Самост. | DJ5: Всего | DK5: в том числе | DO5: Максим. | DP5: Самост. | DQ5: Всего | DR5: в том числе | DV5: Максим. | DW5: Самост. | DX5: Всего | DY5: в том числе | EC5: Обяз. часть | ED5: Вар. часть
X6: Теор. обучение | Y6: Лаб. и пр. занятия | Z6: Лаб. занятия | AA6: Курс. проект. | AE6: Теор. обучение | AF6: Лаб. и пр. занятия | AG6: Лаб. занятия | AH6: Курс. проект. | AL6: Теор. обучение | AM6: Лаб. и пр. занятия | AN6: Лаб. занятия | AO6: Курс. проект. | AS6: Теор. обучение | AT6: Лаб. и пр. занятия | AU6: Лаб. занятия | AV6: Курс. проект. | AZ6: Теор. обучение | BA6: Лаб. и пр. занятия | BB6: Лаб. занятия | BC6: Курс. проект. | BG6: Теор. обучение | BH6: Лаб. и пр. занятия | BI6: Лаб. занятия | BJ6: Курс. проект. | BN6: Теор. обучение | BO6: Лаб. и пр. занятия | BP6: Лаб. занятия | BQ6: Курс. проект. | BU6: Теор. обучение | BV6: Лаб. и пр. занятия | BW6: Лаб. занятия | BX6: Курс. проект. | CB6: Теор. обучение | CC6: Лаб. и пр. занятия | CD6: Лаб. занятия | CE6: Курс. проект. | CI6: Теор. обучение | CJ6: Лаб. и пр. занятия | CK6: Лаб. занятия | CL6: Курс. проект. | CP6: Теор. обучение | CQ6: Лаб. и пр. занятия | CR6: Лаб. занятия | CS6: Курс. проект. | CW6: Теор. обучение | CX6: Лаб. и пр. занятия | CY6: Лаб. занятия | CZ6: Курс. проект. | DD6: Теор. обучение | DE6: Лаб. и пр. занятия | DF6: Лаб. занятия | DG6: Курс. проект. | DK6: Теор. обучение | DL6: Лаб. и пр. занятия | DM6: Лаб. занятия | DN6: Курс. проект. | DR6: Теор. обучение | DS6: Лаб. и пр. занятия | DT6: Лаб. занятия | DU6: Курс. проект. | DY6: Теор. обучение | DZ6: Лаб. и пр. занятия | EA6: Лаб. занятия | EB6: Курс. проект.
A7: 1 | B7: 2 | C7: 3 | D7: 4 | E7: 5 | F7: 6 | G7: 6 | H7: 7 | I7: 8 | J7: 7 | K7: 10 | L7: 8 | M7: 12 | N7: 9 | O7: 14 | P7: 10 | Q7: 11 | R7: 12 | S7: 18 | T7: 13 | U7: 20 | V7: 14 | W7: 15 | X7: 16 | Y7: 17 | Z7: 25 | AA7: 18 | AB7: 27 | AC7: 19 | AD7: 20 | AE7: 21 | AF7: 22 | AG7: 32 | AH7: 23 | AI7: 34 | AJ7: 24 | AK7: 25 | AL7: 26 | AM7: 27 | AN7: 39 | AO7: 28 | AP7: 41 | AQ7: 29 | AR7: 30 | AS7: 31 | AT7: 32 | AU7: 46 | AV7: 33 | AW7: 48 | AX7: 34 | AY7: 35 | AZ7: 36 | BA7: 37 | BB7: 53 | BC7: 38 | BD7: 55 | BE7: 39 | BF7: 40 | BG7: 41 | BH7: 42 | BI7: 60 | BJ7: 43 | BK7: 62 | BL7: 44 | BM7: 45 | BN7: 46 | BO7: 47 | BP7: 67 | BQ7: 48 | BR7: 69 | BS7: 49 | BT7: 50 | BU7: 51 | BV7: 52 | BW7: 74 | BX7: 53 | BY7: 76 | BZ7: 77 | CA7: 78 | CB7: 79 | CC7: 80 | CD7: 81 | CE7: 82 | CF7: 83 | CG7: 84 | CH7: 85 | CI7: 86 | CJ7: 87 | CK7: 88 | CL7: 89 | CM7: 90 | CN7: 91 | CO7: 92 | CP7: 93 | CQ7: 94 | CR7: 95 | CS7: 96 | CT7: 97 | CU7: 98 | CV7: 99 | CW7: 100 | CX7: 101 | CY7: 102 | CZ7: 103 | DA7: 104 | DB7: 105 | DC7: 106 | DD7: 107 | DE7: 108 | DF7: 109 | DG7: 110 | DH7: 111 | DI7: 112 | DJ7: 113 | DK7: 114 | DL7: 115 | DM7: 116 | DN7: 117 | DO7: 118 | DP7: 119 | DQ7: 120 | DR7: 121 | DS7: 122 | DT7: 123 | DU7: 124 | DV7: 125 | DW7: 126 | DX7: 127 | DY7: 128 | DZ7: 129 | EA7: 130 | EB7: 131 | EC7: 54 | ED7: 55
B9: час/нед | U9: 31.5 | W9: =W10/16 -> 21 | AB9: 31.5 | AD9: =AD10/20 -> 21 | AI9: 22.5 | AK9: =AK10/16 -> 15 | AP9: 22.5 | AR9: =AR10/20 -> 15 | AW9: 4.5 | AY9: 3 | BD9: 4.5 | BF9: 3 | BY9: NaN | CA9: NaN | CF9: NaN | CH9: NaN | CM9: NaN | CO9: NaN | CT9: NaN | CV9: NaN | DA9: NaN | DC9: NaN | DH9: NaN | DJ9: NaN | DO9: NaN | DQ9: NaN | DV9: NaN | DX9: NaN
A10: ОУЦ.00 | B10: Общеобразовательный учебный цикл | D10: 3 | E10: 4 | F10: 6 | J10: 14 | L10: 2106 | M10: 0 | N10: 702 | O10: 0 | P10: 1404 | Q10: 1276 | R10: 128 | U10: 504 | V10: 168 | W10: 336 | X10: 320 | Y10: 16 | AA10: 0 | AC10: 210 | AD10: 420 | AE10: 380 | AF10: 40 | AH10: 0 | AJ10: 120 | AK10: 240 | AL10: 208 | AM10: 32 | AO10: 0 | AQ10: 150 | AR10: 300 | AS10: 260 | AT10: 40 | AV10: 0 | EC10: 1404
A11: ОУП.00 | B11: Обязательные учебные предметы | D11: 3 | E11: 4 | F11: 6 | J11: 14 | L11: 1134 | M11: 0 | N11: 378 | O11: 0 | P11: 756 | Q11: 628 | R11: 128 | U11: 264 | V11: 88 | W11: 176 | X11: 160 | Y11: 16 | Z11: 0 | AA11: 0 | AB11: 330 | AC11: 110 | AD11: 220 | AE11: 180 | AF11: 40 | AG11: 0 | AH11: 0 | AI11: 240 | AJ11: 80 | AK11: 160 | AL11: 128 | AM11: 32 | AN11: 0 | AO11: 0 | AP11: 300 | AQ11: 100 | AR11: 200 | AS11: 160 | AT11: 40 | AU11: 0 | AV11: 0 | AX11: =SUM(AX15:AX21) -> 0 | AY11: =SUM(AY15:AY21) -> 0 | AZ11: =SUM(AZ15:AZ21) -> 0 | BA11: =SUM(BA15:BA21) -> 0 | BC11: =SUM(BC15:BC21) -> 0 | BE11: =SUM(BE15:BE21) -> 0 | BF11: =SUM(BF15:BF21) -> 0 | BG11: =SUM(BG15:BG21) -> 0 | BH11: =SUM(BH15:BH21) -> 0 | BJ11: =SUM(BJ15:BJ21) -> 0 | BL11: =SUM(BL15:BL21) -> 0 | BM11: =SUM(BM15:BM21) -> 0 | BN11: =SUM(BN15:BN21) -> 0 | BO11: =SUM(BO15:BO21) -> 0 | BQ11: =SUM(BQ15:BQ21) -> 0 | BS11: =SUM(BS15:BS21) -> 0 | BT11: =SUM(BT15:BT21) -> 0 | BU11: =SUM(BU15:BU21) -> 0 | BV11: =SUM(BV15:BV21) -> 0 | BX11: =SUM(BX15:BX21) -> 0 | EC11: 756 | ED11: =SUM(ED15:ED21) -> 0
A12: ОУП.01 | B12: Русский язык | C12: гр | D12: 4 | J12: 123 | L12: =N12+P12 -> 108 | N12: =V12+AC12+AJ12+AQ12+AX12+BE12+BL12+BS12 -> 36 | P12: =W12+AD12+AK12+AR12+AY12+BF12+BM12+BT12 -> 72 | Q12: 72 | R12: 0 | U12: 24 | V12: 8 | W12: 16 | X12: 16 | AB12: 30 | AC12: 10 | AD12: 20 | AE12: 20 | AI12: 24 | AJ12: 8 | AK12: 16 | AL12: 16 | AP12: 30 | AQ12: 10 | AR12: 20 | AS12: 20 | EC12: 72
A13: ОУП.02 | B13: Литература | C13: гр | D13: 4 | J13: 123 | L13: =N13+P13 -> 132 | N13: =V13+AC13+AJ13+AQ13+AX13+BE13+BL13+BS13 -> 44 | P13: 88 | Q13: 88 | R13: 0 | U13: 48 | V13: 16 | W13: 32 | X13: 32 | AB13: 30 | AC13: 10 | AD13: 20 | AE13: 20 | AI13: 48 | AJ13: 8 | AK13: 16 | AL13: 16 | AP13: 60 | AQ13: 10 | AR13: 20 | AS13: 20 | EC13: 124
A14: ОУП.03 | B14: Родная литература | C14: гр | J14: 4 | L14: 54 | N14: 18 | P14: 36 | Q14: 36 | AJ14: 8 | AK14: 16 | AL14: 16 | AQ14: 10 | AR14: 20 | AS14: 20
A15: ОУП.04 | B15: Иностранный язык | C15: мг | F15: 34 | J15: 12 | L15: =N15+P15 -> 192 | N15: =V15+AC15+AJ15+AQ15+AX15+BE15+BL15+BS15 -> 64 | P15: =W15+AD15+AK15+AR15+AY15+BF15+BM15+BT15 -> 128 | Q15: =X15+AE15+AL15+AS15+AZ15+BG15+BN15+BU15 -> 0 | R15: =Y15+AF15+AM15+AT15+BA15+BH15+BO15+BV15 -> 128 | U15: 24 | V15: 8 | W15: 16 | Y15: 16 | AB15: 60 | AC15: 20 | AD15: 40 | AF15: 40 | AI15: 48 | AJ15: 16 | AK15: 32 | AM15: 32 | AP15: 60 | AQ15: 20 | AR15: 40 | AT15: 40 | EC15: 128
A16: ОУП.05 | B16: Обществознание | C16: гр | F16: 4 | L16: 60 | N16: 20 | P16: 40 | Q16: 40 | R16: 0 | AP16: 60 | AQ16: 20 | AR16: 40 | AS16: 40 | EC16: 40
A17: ОУП.06 | B17: Математика | C17: мг | D17: 3 | J17: 12 | L17: 102 | N17: 34 | P17: =W17+AD17+AK17+AR17+AY17+BF17+BM17+BT17 -> 68 | Q17: 68 | R17: 0 | U17: 24 | V17: 8 | W17: 16 | X17: 16 | AB17: 30 | AC17: 10 | AD17: 20 | AE17: 20 | AI17: 48 | AJ17: 16 | AK17: 32 | AL17: 32 | EC17: 68
A18: ОУП.07 | B18: Естествознание | C18: гр | F18: 2 | J18: 1 | L18: =N18+P18 -> 108 | N18: =V18+AC18+AJ18+AQ18+AX18+BE18+BL18+BS18 -> 36 | P18: 72 | Q18: 72 | R18: 0 | U18: 48 | V18: 16 | W18: 32 | X18: 32 | AB18: 60 | AC18: 20 | AD18: 40 | AE18: 40 | EC18: 72
A19: ОУП.08 | B19: Астрономия | C19: гр | F19: 4 | J19: 3 | L19: =N19+P19 -> 54 | N19: =V19+AC19+AJ19+AQ19+AX19+BE19+BL19+BS19 -> 18 | P19: 36 | Q19: 36 | R19: 0 | AI19: 24 | AJ19: 8 | AK19: 16 | AL19: 16 | AP19: 30 | AQ19: 10 | AR19: 20 | AS19: 20 | EC19: 36
A20: ОУП.09 | B20: Основы безопасности и защита Родины | C20: гр | F20: 2 | J20: 1 | L20: 108 | N20: 36 | P20: 72 | Q20: 72 | R20: 0 | U20: 48 | V20: 16 | W20: 32 | X20: 32 | AB20: 60 | AC20: 20 | AD20: 40 | AE20: 40 | EC20: 72
A21: ОУП.10 | B21: Физическая культура | C21: гр | E21: 1234 | L21: 216 | N21: 72 | P21: 144 | Q21: 144 | R21: 0 | U21: 48 | V21: 16 | W21: 32 | X21: 32 | AB21: 60 | AC21: 20 | AD21: 40 | AE21: 40 | AI21: 48 | AJ21: 16 | AK21: 32 | AL21: 32 | AP21: 60 | AQ21: 20 | AR21: 40 | AS21: 40 | EC21: 144
A22: ПУП.00 | B22: Профильные учебные предметы | D22: 6 | F22: 1 | G22: =LEN(#REF!)+LEN(#REF!)+LEN(#REF!)+LEN(#REF!)+LEN(#REF!)+LEN(#REF!)+LEN(#REF!) ->  | H22: =LEN(#REF!)+LEN(#REF!)+LEN(#REF!)+LEN(#REF!)+LEN(#REF!)+LEN(#REF!)+LEN(#REF!) ->  | I22: =LEN(#REF!)+LEN(#REF!)+LEN(#REF!)+LEN(#REF!)+LEN(#REF!)+LEN(#REF!)+LEN(#REF!) ->  | J22: 7 | L22: 972 | M22: =SUM(M22:M26) -> 0 | N22: 324 | O22: =SUM(O22:O26) -> 0 | P22: 648 | Q22: 648 | R22: =SUM(R22:R26) -> 0 | U22: 240 | V22: 80 | W22: 160 | X22: 160 | Y22: =SUM(Y22:Y26) -> 0 | Z22: =SUM(Z22:Z26) -> 0 | AA22: =SUM(AA22:AA26) -> 0 | AB22: =SUM(AB22:AB26) -> 360 | AC22: 100 | AD22: 200 | AE22: 200 | AF22: =SUM(AF22:AF26) -> 0 | AG22: =SUM(AG22:AG26) -> 0 | AH22: =SUM(AH22:AH26) -> 0 | AI22: =SUM(AI22:AI26) -> 192 | AJ22: 40 | AK22: 80 | AL22: 80 | AM22: =SUM(AM22:AM26) -> 0 | AN22: =SUM(AN22:AN26) -> 0 | AO22: =SUM(AO22:AO26) -> 0 | AP22: =SUM(AP22:AP26) -> 240 | AQ22: 50 | AR22: 100 | AS22: 100 | AT22: =SUM(AT22:AT26) -> 0 | AU22: 0 | AV22: 0 | AW22: 72 | AX22: 24 | AY22: 48 | AZ22: 48 | BA22: 0 | BB22: 0 | BC22: 0 | BD22: 90 | BE22: 30 | BF22: 60 | BG22: 60 | BH22: 0 | BI22: 0 | BJ22: 0 | BK22: 0 | BL22: 0 | BM22: 0 | BN22: 0 | BO22: 0 | BP22: 0 | BQ22: 0 | BR22: 0 | BS22: 0 | BT22: 0 | BU22: 0 | BV22: 0 | BW22: 0 | BX22: 0 | BY22: 0 | BZ22: =SUM(BZ22:BZ26) -> 0 | CA22: 0 | CB22: 0 | CC22: 0 | CD22: 0 | CE22: 0 | CF22: 0 | CG22: 0 | CH22: 0 | CI22: 0 | CJ22: 0 | CK22: 0 | CL22: 0 | CM22: 0 | CN22: 0 | CO22: 0 | CP22: 0 | CQ22: 0 | CR22: 0 | CS22: 0 | CT22: 0 | CU22: 0 | CV22: 0 | CW22: 0 | CX22: 0 | CY22: 0 | CZ22: 0 | DA22: 0 | DB22: 0 | DC22: 0 | DD22: 0 | DE22: 0 | DF22: =SUM(DF22:DF26) -> 0 | DG22: 0 | DH22: 0 | DI22: 0 | DJ22: 0 | DK22: 0 | DL22: 0 | DM22: 0 | DN22: 0 | DO22: 0 | DP22: 0 | DQ22: 0 | DR22: 0 | DS22: 0 | DT22: 0 | DU22: 0 | DV22: 0 | DW22: 0 | DX22: 0 | DY22: 0 | DZ22: 0 | EA22: 0 | EB22: 0 | EC22: 648 | ED22: =SUM(ED22:ED26) -> 0
A23: ПУП.01 | B23: История мировой культуры | C23: гр | F23: 4 | J23: 123 | L23: =N23+P23 -> 216 | N23: =V23+AC23+AJ23+AQ23+AX23+BE23+BL23+BS23 -> 72 | P23: =W23+AD23+AK23+AR23+AY23+BF23+BM23+BT23 -> 144 | Q23: 144 | R23: 0 | U23: 48 | V23: 16 | W23: 32 | X23: 32 | AB23: 60 | AC23: 20 | AD23: 40 | AE23: 40 | AI23: 48 | AJ23: 16 | AK23: 32 | AL23: 32 | AP23: 60 | AQ23: 20 | AR23: 40 | AS23: 40 | EC23: 144
A24: ПУП.02 | B24: История | C24: гр | D24: 2 | J24: 1 | L24: =N24+P24 -> 216 | N24: =V24+AC24+AJ24+AQ24+AX24+BE24+BL24+BS24 -> 72 | P24: =W24+AD24+AK24+AR24+AY24+BF24+BM24+BT24 -> 144 | Q24: =X24+AE24+AL24+AS24+AZ24+BG24+BN24+BU24 -> 144 | R24: =Y24+AF24+AM24+AT24+BA24+BH24+BO24+BV24 -> 0 | U24: 96 | V24: 32 | W24: 64 | X24: 64 | AB24: 120 | AC24: 40 | AD24: 80 | AE24: 80 | EC24: 144
A25: ПУП.03 | B25: Народная музыкальная культура | C25: гр | D25: 2 | J25: 1 | L25: =N25+P25 -> 54 | N25: =V25+AC25+AJ25+AQ25+AX25+BE25+BL25+BS25 -> 18 | P25: =W25+AD25+AK25+AR25+AY25+BF25+BM25+BT25 -> 36 | Q25: 36 | R25: 0 | U25: 24 | V25: 8 | W25: 16 | X25: 16 | AB25: 30 | AC25: 10 | AD25: 20 | AE25: 20 | EC25: 36
A26: ПУП.04 | B26: Музыкальная литература (зарубежная и отечественная) | C26: мг | D26: 1246 | J26: 35 | L26: 486 | N26: 162 | P26: 324 | Q26: 324 | R26: 0 | U26: 72 | V26: 24 | W26: 48 | X26: 48 | AB26: 90 | AC26: 30 | AD26: 60 | AE26: 60 | AI26: 72 | AJ26: 24 | AK26: 48 | AL26: 48 | AP26: 90 | AQ26: 30 | AR26: 60 | AS26: 60 | AW26: 72 | AX26: 24 | AY26: 48 | AZ26: 48 | BD26: 90 | BE26: 30 | BF26: 60 | BG26: 60 | EC26: 324
B27: час/нед | U27: 22.5 | W27: 15 | AB27: 22.4 | AD27: 15 | AI27: 31.5 | AK27: 21 | AP27: 31.5 | AR27: 21 | AW27: 49.5 | AY27: 33 | BD27: 49.5 | BF27: 33 | BK27: 54 | BM27: 36 | BR27: 54 | BT27: 36 | BY27: NaN | CA27: NaN | CF27: NaN | CH27: NaN | CM27: NaN | CO27: NaN | CT27: NaN | CV27: NaN | DA27: NaN | DC27: NaN | DH27: NaN | DJ27: NaN | DO27: NaN | DQ27: NaN | DV27: NaN | DX27: NaN
A28: ОГСЭ.00 | B28: Общий гуманитарный и социально-экономический цикл | D28: =LEN(D29)+LEN(D30)+LEN(D31)+LEN(D32)+LEN(D33) -> 1 | E28: =LEN(E29)+LEN(E30)+LEN(E31)+LEN(E32)+LEN(E33) -> 3 | F28: 3 | G28: 0 | H28: 0 | I28: 0 | J28: 3 | L28: =SUM(L29:L33) -> 531 | M28: =SUM(M29:M33) -> 0 | N28: 177 | O28: 0 | P28: 354 | Q28: 192 | R28: 162 | V28: =SUM(V29:V33) -> 0 | W28: 0 | X28: 0 | Y28: 0 | Z28: 0 | AA28: 0 | AB28: 0 | AC28: 0 | AD28: 0 | AE28: 0 | AF28: 0 | AG28: 0 | AH28: 0 | AI28: 59 | AJ28: 11 | AK28: 48 | AL28: 48 | AM28: 0 | AN28: 0 | AO28: 0 | AP28: 0 | AQ28: 0 | AR28: 0 | AS28: 0 | AT28: 0 | AU28: 0 | AV28: 0 | AW28: 167 | AX28: 55 | AY28: 112 | AZ28: 48 | BA28: 64 | BB28: 0 | BC28: 0 | BD28: 108 | BE28: 48 | BF28: 60 | BG28: 0 | BH28: 60 | BI28: 0 | BJ28: 0 | BK28: 145 | BL28: 49 | BM28: 96 | BN28: 96 | BO28: 0 | BP28: 0 | BQ28: 0 | BR28: 52 | BS28: 14 | BT28: 38 | BU28: 0 | BV28: 38 | BW28: 0 | BX28: 0 | BY28: 0 | BZ28: 0 | CA28: 0 | CB28: 0 | CC28: 0 | CD28: 0 | CE28: 0 | CF28: 0 | CG28: 0 | CH28: =SUM(CH29:CH33) -> 0 | CI28: 0 | CJ28: 0 | CK28: 0 | CL28: 0 | CM28: 0 | CN28: 0 | CO28: 0 | CP28: 0 | CQ28: 0 | CR28: 0 | CS28: 0 | CT28: 0 | CU28: 0 | CV28: 0 | CW28: 0 | CX28: 0 | CY28: 0 | CZ28: 0 | DA28: 0 | DB28: 0 | DC28: 0 | DD28: 0 | DE28: 0 | DF28: 0 | DG28: 0 | DH28: 0 | DI28: 0 | DJ28: 0 | DK28: 0 | DL28: 0 | DM28: 0 | DN28: 0 | DO28: 0 | DP28: 0 | DQ28: 0 | DR28: 0 | DS28: 0 | DT28: 0 | DU28: 0 | DV28: 0 | DW28: 0 | DX28: 0 | DY28: 0 | DZ28: 0 | EA28: 0 | EB28: 0 | EC28: =SUM(EC29:EC33) -> 354 | ED28: =SUM(ED29:ED33) -> 0
A29: ОГСЭ.01 | B29: Основы философии | C29: гр | F29: 5 | L29: =N29+P29 -> 59 | N29: =V29+AC29+AJ29+AQ29+AX29+BE29+BL29+BS29 -> 11 | P29: =W29+AD29+AK29+AR29+AY29+BF29+BM29+BT29 -> 48 | Q29: 48 | R29: 0 | AW29: 59 | AX29: 11 | AY29: 48 | AZ29: 48 | EC29: 48
A30: ОГСЭ.02 | B30: История | C30: гр | D30: 3 | L30: =N30+P30 -> 59 | N30: =V30+AC30+AJ30+AQ30+AX30+BE30+BL30+BS30 -> 11 | P30: 48 | Q30: 48 | R30: 0 | AI30: 59 | AJ30: 11 | AK30: 48 | AL30: 48 | EC30: 48
A31: ОГСЭ.03 | B31: Психология общения | C31: гр | F31: 7 | L31: =N31+P31 -> 59 | N31: =V31+AC31+AJ31+AQ31+AX31+BE31+BL31+BS31 -> 11 | P31: 48 | Q31: 48 | R31: 0 | BK31: 59 | BL31: 11 | BM31: 48 | BN31: 48 | EC31: 48
A32: ОГСЭ.04 | B32: Иностранный язык | C32: мг | F32: 8 | J32: 567 | L32: =N32+P32 -> 146 | N32: =V32+AC32+AJ32+AQ32+AX32+BE32+BL32+BS32 -> 40 | P32: 106 | Q32: 16 | R32: 90 | AW32: 44 | AX32: 12 | AY32: 32 | BA32: 32 | BD32: 28 | BE32: 8 | BF32: 20 | BH32: 20 | BK32: 22 | BL32: 6 | BM32: 16 | BN32: 16 | BR32: 52 | BS32: 14 | BT32: 38 | BV32: 38 | EC32: 106
A33: ОГСЭ.05 | B33: Физическая культура | C33: гр | E33: 567 | L33: =N33+P33 -> 208 | N33: =V33+AC33+AJ33+AQ33+AX33+BE33+BL33+BS33 -> 104 | P33: 104 | Q33: 32 | R33: 72 | AW33: 64 | AX33: 32 | AY33: 32 | BA33: 32 | BD33: 80 | BE33: 40 | BF33: 40 | BH33: 40 | BK33: 64 | BL33: 32 | BM33: 32 | BN33: 32 | EC33: 104
A34: П | B34: Профессиональный цикл | D34: =D35+D43 -> 17 | E34: =E35+E43 -> 1 | F34: =F35+F43 -> 14 | J34: =J35+J43 -> 54 | P34: 2706
A35: ОП.00 | B35: Общепрофессиональные дисциплины | D35: =LEN(D36)+LEN(D37)+LEN(D38)+LEN(D39)+LEN(D40)+LEN(D41)+LEN(D42) -> 6 | E35: =LEN(E36)+LEN(E37)+LEN(E38)+LEN(E39)+LEN(E40)+LEN(E41)+LEN(E42) -> 0 | F35: 6 | G35: 0 | H35: 0 | I35: 0 | J35: 11 | L35: =SUM(L36:L42) -> 1282 | M35: =SUM(M36:M42) -> 0 | N35: 427 | O35: 0 | P35: 855 | Q35: 401 | R35: 454 | U35: 96 | V35: =SUM(V36:V42) -> 32 | W35: 64 | X35: 0 | Y35: 64 | Z35: 0 | AA35: 0 | AB35: 120 | AC35: 40 | AD35: 80 | AE35: 0 | AF35: 80 | AG35: 0 | AH35: 0 | AI35: 96 | AJ35: 32 | AK35: 64 | AL35: 32 | AM35: 32 | AN35: 0 | AO35: 0 | AP35: 120 | AQ35: 40 | AR35: 80 | AS35: 40 | AT35: 40 | AU35: 0 | AV35: 0 | AW35: 120 | AX35: 40 | AY35: 80 | AZ35: 48 | BA35: 32 | BB35: 0 | BC35: 0 | BD35: 150 | BE35: 70 | BF35: 140 | BG35: 80 | BH35: 60 | BI35: 0 | BJ35: 0 | BK35: 264 | BL35: 88 | BM35: 176 | BN35: 144 | BO35: 32 | BP35: 0 | BQ35: 0 | BR35: 256 | BS35: 85 | BT35: 171 | BU35: 57 | BV35: 114 | BW35: 0 | BX35: 0 | BY35: 0 | BZ35: 0 | CA35: 0 | CB35: 0 | CC35: 0 | CD35: 0 | CE35: 0 | CF35: 0 | CG35: 0 | CH35: =SUM(CH36:CH42) -> 0 | CI35: 0 | CJ35: 0 | CK35: 0 | CL35: 0 | CM35: 0 | CN35: 0 | CO35: 0 | CP35: 0 | CQ35: 0 | CR35: 0 | CS35: 0 | CT35: 0 | CU35: 0 | CV35: 0 | CW35: 0 | CX35: 0 | CY35: 0 | CZ35: 0 | DA35: 0 | DB35: 0 | DC35: 0 | DD35: 0 | DE35: 0 | DF35: 0 | DG35: 0 | DH35: 0 | DI35: 0 | DJ35: 0 | DK35: 0 | DL35: 0 | DM35: 0 | DN35: 0 | DO35: 0 | DP35: 0 | DQ35: 0 | DR35: 0 | DS35: 0 | DT35: 0 | DU35: 0 | DV35: 0 | DW35: 0 | DX35: 0 | DY35: 0 | DZ35: 0 | EA35: 0 | EB35: 0 | EC35: =SUM(EC36:EC42) -> 815 | ED35: =SUM(ED36:ED42) -> 40
A36: ОП.01 | B36: Музыкальная литература (зарубежная и отечественная) | C36: мг | D36: 8 | J36: 7 | L36: =N36+P36 -> 157 | N36: =V36+AC36+AJ36+AQ36+AX36+BE36+BL36+BS36 -> 52 | P36: =W36+AD36+AK36+AR36+AY36+BF36+BM36+BT36 -> 105 | Q36: =X36+AE36+AL36+AS36+AZ36+BG36+BN36+BU36 -> 105 | R36: =Y36+AF36+AM36+AT36+BA36+BH36+BO36+BV36 -> 0 | BK36: 72 | BL36: 24 | BM36: 48 | BN36: 48 | BR36: 85 | BS36: 28 | BT36: 57 | BU36: 57 | EC36: 105
A37: ОП.02 | B37: Сольфеджио | C37: мг | D37: 46 | F37: 28 | J37: 1357 | L37: =N37+P37 -> 459 | N37: =V37+AC37+AJ37+AQ37+AX37+BE37+BL37+BS37 -> 153 | P37: =W37+AD37+AK37+AR37+AY37+BF37+BM37+BT37 -> 306 | Q37: =X37+AE37+AL37+AS37+AZ37+BG37+BN37+BU37 -> 0 | R37: =Y37+AF37+AM37+AT37+BA37+BH37+BO37+BV37 -> 306 | U37: 48 | V37: 16 | W37: 32 | Y37: 32 | AB37: 60 | AC37: 20 | AD37: 40 | AF37: 40 | AI37: 48 | AJ37: 16 | AK37: 32 | AM37: 32 | AP37: 60 | AQ37: 20 | AR37: 40 | AT37: 40 | AW37: 48 | AX37: 16 | AY37: 32 | BA37: 32 | BD37: 60 | BE37: 30 | BF37: 60 | BH37: 60 | BK37: 48 | BL37: 16 | BM37: 32 | BO37: 32 | BR37: 57 | BS37: 19 | BT37: 38 | BV37: 38 | EC37: 286 | ED37: 20
A38: ОП.03 | B38: Элементарная теория музыки | C38: мг | D38: 2 | F38: 1 | L38: 108 | N38: 36 | P38: 72 | Q38: 0 | R38: 72 | U38: 48 | V38: 16 | W38: 32 | Y38: 32 | AB38: 60 | AC38: 20 | AD38: 40 | AF38: 40 | EC38: 72
A39: ОП.04 | B39: Гармония | C39: мг | D39: 57 | J39: 346 | L39: 294 | N39: 98 | P39: 196 | Q39: 196 | R39: 0 | AI39: 48 | AJ39: 16 | AK39: 32 | AL39: 32 | AP39: 60 | AQ39: 20 | AR39: 40 | AS39: 40 | AW39: 48 | AX39: 16 | AY39: 32 | AZ39: 32 | BD39: 60 | BE39: 30 | BF39: 60 | BG39: 60 | BK39: 48 | BL39: 16 | BM39: 32 | BN39: 32 | EC39: 176 | ED39: 20
A40: ОП.05 | B40: Анализ музыкальных произведений | C40: мг | F40: 8 | L40: 57 | N40: 19 | P40: 38 | Q40: 0 | R40: 38 | BR40: 57 | BS40: 19 | BT40: 38 | BV40: 38 | EC40: 38
A41: ОП.06 | B41: Музыкальная информатика | C41: мг | F41: 7 | J41: 8 | L41: 105 | N41: 35 | P41: 70 | Q41: 32 | R41: 38 | BK41: 48 | BL41: 16 | BM41: 32 | BN41: 32 | BR41: 57 | BS41: 19 | BT41: 38 | BV41: 38 | EC41: 70
A42: ОП.07 | B42: Безопасность жизнедеятельности | C42: гр | F42: 7 | J42: 56 | L42: 102 | N42: 34 | P42: 68 | Q42: 68 | R42: 0 | AW42: 24 | AX42: 8 | AY42: 16 | AZ42: 16 | BD42: 30 | BE42: 10 | BF42: 20 | BG42: 20 | BK42: 48 | BL42: 16 | BM42: 32 | BN42: 32 | EC42: 68
A43: ПМ | B43: Профессиональные модули | D43: 11 | E43: 1 | F43: 8 | J43: 43 | P43: 1851
A44: ПМ.01 | B44: Дирижерско-хоровая деятельность | D44: 8 | E44: =LEN(E45)+LEN(E46)+LEN(E47)+LEN(E48)+LEN(E49)+LEN(E50)+LEN(E52)+LEN(E53) -> 0 | F44: 7 | G44: 0 | H44: 0 | I44: 0 | J44: 32 | L44: =SUM(L45:L55) -> 1966 | M44: =SUM(M45:M53) -> 0 | N44: =SUM(N45:N55) -> 655 | O44: 0 | P44: =SUM(P45:P55) -> 1311 | Q44: 203 | R44: 766 | U44: 123 | V44: =SUM(V45:V53) -> 40 | W44: 80 | X44: 0 | Y44: 80 | Z44: 0 | AA44: 0 | AB44: 153 | AC44: 50 | AD44: 100 | AE44: 0 | AF44: 100 | AG44: 0 | AH44: 0 | AI44: 120 | AJ44: 48 | AK44: 96 | AL44: 16 | AM44: 80 | AN44: 0 | AO44: 0 | AP44: 180 | AQ44: 60 | AR44: 120 | AS44: 40 | AT44: 80 | AU44: 0 | AV44: 0 | AW44: 192 | AX44: 64 | AY44: 128 | AZ44: 32 | BA44: 96 | BB44: 0 | BC44: 0 | BD44: 300 | BE44: 100 | BF44: 200 | BG44: 80 | BH44: 120 | BI44: 0 | BJ44: 0 | BK44: 168 | BL44: 56 | BM44: 112 | BN44: 16 | BO44: 96 | BP44: 0 | BQ44: 0 | BR44: 215 | BS44: 66 | BT44: 133 | BU44: 19 | BV44: 114 | BW44: 0 | BX44: 0 | BY44: 0 | BZ44: 0 | CA44: 0 | CB44: 0 | CC44: 0 | CD44: 0 | CE44: 0 | CF44: 0 | CG44: 0 | CH44: =SUM(CH45:CH53) -> 0 | CI44: 0 | CJ44: 0 | CK44: 0 | CL44: 0 | CM44: 0 | CN44: 0 | CO44: 0 | CP44: 0 | CQ44: 0 | CR44: 0 | CS44: 0 | CT44: 0 | CU44: 0 | CV44: 0 | CW44: 0 | CX44: 0 | CY44: 0 | CZ44: 0 | DA44: 0 | DB44: 0 | DC44: 0 | DD44: 0 | DE44: 0 | DF44: 0 | DG44: 0 | DH44: 0 | DI44: 0 | DJ44: 0 | DK44: 0 | DL44: 0 | DM44: 0 | DN44: 0 | DO44: 0 | DP44: 0 | DQ44: 0 | DR44: 0 | DS44: 0 | DT44: 0 | DU44: 0 | DV44: 0 | DW44: 0 | DX44: 0 | DY44: 0 | DZ44: 0 | EA44: 0 | EB44: 0 | EC44: =SUM(EC45:EC53) -> 893 | ED44: =SUM(ED45:ED53) -> 76
A45: МДК.01.01 | B45: Дирижирование,чтение хоровых партитур, хороведение: дирижирование | C45: инд | D45: 246 | F45: 1357 | J45: 8 | L45: =N45+P45 -> 507 | N45: =V45+AC45+AJ45+AQ45+AX45+BE45+BL45+BS45 -> 169 | P45: =W45+AD45+AK45+AR45+AY45+BF45+BM45+BT45 -> 338 | Q45: =X45+AE45+AL45+AS45+AZ45+BG45+BN45+BU45 -> 0 | R45: =Y45+AF45+AM45+AT45+BA45+BH45+BO45+BV45 -> 338 | U45: 75 | V45: 24 | W45: 48 | Y45: 48 | AB45: 93 | AC45: 30 | AD45: 60 | AF45: 60 | AI45: 48 | AJ45: 24 | AK45: 48 | AM45: 48 | AP45: 60 | AQ45: 20 | AR45: 40 | AT45: 40 | AW45: 48 | AX45: 16 | AY45: 32 | BA45: 32 | BD45: 60 | BE45: 20 | BF45: 40 | BH45: 40 | BK45: 48 | BL45: 16 | BM45: 32 | BO45: 32 | BR45: 57 | BS45: 19 | BT45: 38 | BV45: 38 | EC45: 338
B46: Дирижирование,чтение хоровых партитур, хороведение: чтение хоровых партитур | C46: инд | J46: 3478 | L46: =N46+P46 -> 106 | N46: =V46+AC46+AJ46+AQ46+AX46+BE46+BL46+BS46 -> 35 | P46: =W46+AD46+AK46+AR46+AY46+BF46+BM46+BT46 -> 71 | Q46: =X46+AE46+AL46+AS46+AZ46+BG46+BN46+BU46 -> 71 | R46: =Y46+AF46+AM46+AT46+BA46+BH46+BO46+BV46 -> 0 | AI46: 24 | AJ46: 8 | AK46: 16 | AL46: 16 | AP46: 30 | AQ46: 10 | AR46: 20 | AS46: 20 | BK46: 24 | BL46: 8 | BM46: 16 | BN46: 16 | BR46: 28 | BS46: 9 | BT46: 19 | BU46: 19 | EC46: 55 | ED46: 16
B47: Дирижирование,чтение хоровых партитур, хороведение: хороведение | C47: гр | F47: 6 | J47: 5 | L47: 108 | N47: 36 | P47: 72 | Q47: 72 | R47: 0 | AW47: 48 | AX47: 16 | AY47: 32 | AZ47: 32 | BD47: 60 | BE47: 20 | BF47: 40 | BG47: 40 | EC47: 72
A48: МДК.01.02 | B48: Фортепиано, аккомпанемент и чтение с листа: фортепиано | C48: инд | D48: 35 | J48: 124678 | L48: 214 | N48: 71 | P48: 143 | Q48: 0 | R48: 143 | U48: 24 | V48: 8 | W48: 16 | Y48: 16 | AB48: 30 | AC48: 10 | AD48: 20 | AF48: 20 | AI48: 24 | AJ48: 8 | AK48: 16 | AM48: 16 | AP48: 30 | AQ48: 10 | AR48: 20 | AT48: 20 | AW48: 24 | AX48: 8 | AY48: 16 | BA48: 16 | BD48: 30 | BE48: 10 | BF48: 20 | BH48: 20 | BK48: 24 | BL48: 8 | BM48: 16 | BO48: 16 | BR48: 28 | BS48: 9 | BT48: 19 | BV48: 19 | EC48: 143
B49: Фортепиано, аккомпанемент и чтение с листа: аккомпанемент | C49: инд | J49: 56 | L49: 54 | N49: 18 | P49: 36 | Q49: 0 | R49: 36 | AW49: 24 | AX49: 8 | AY49: 16 | BA49: 16 | BD49: 30 | BE49: 10 | BF49: 20 | BH49: 20 | EC49: 36
B50: Фортепиано, аккомпанемент и чтение с листа: чтение с листа | C50: инд | J50: 78 | L50: 52 | N50: 17 | P50: 35 | Q50: 0 | R50: 35 | BK50: 24 | BL50: 8 | BM50: 16 | BO50: 16 | BR50: 28 | BS50: 9 | BT50: 19 | BV50: 19 | EC50: 35
B51: Дополнительный инструмент | C51: инд | D51: 6 | J51: 4 | L51: =N51+P51 -> 90 | N51: =V51+AC51+AJ51+AQ51+AX51+BE51+BL51+BS51 -> 30 | P51: =W51+AD51+AK51+AR51+AY51+BF51+BM51+BT51 -> 60 | Q51: =X51+AE51+AL51+AS51+AZ51+BG51+BN51+BU51 -> 60 | R51: =Y51+AF51+AM51+AT51+BA51+BH51+BO51+BV51 -> 0 | AP51: 30 | AQ51: 10 | AR51: 20 | AS51: 20 | BD51: 60 | BE51: 20 | BF51: 40 | BG51: 40 | ED51: 60
A52: МДК.01.03 | B52: Постановка голоса, вокальный ансамбль: постановка голоса | C52: инд | D52: 5 | J52: 1234768 | L52: 215 | N52: 72 | P52: 143 | Q52: 0 | R52: 143 | U52: 24 | V52: 8 | W52: 16 | Y52: 16 | AB52: 30 | AC52: 10 | AD52: 20 | AF52: 20 | AI52: 24 | AJ52: 8 | AK52: 16 | AM52: 16 | AP52: 30 | AQ52: 10 | AR52: 20 | AT52: 20 | AW52: 24 | AX52: 8 | AY52: 16 | BA52: 16 | BD52: 30 | BE52: 10 | BF52: 20 | BH52: 20 | BK52: 24 | BL52: 8 | BM52: 16 | BO52: 16 | BR52: 28 | BS52: 10 | BT52: 19 | BV52: 19 | EC52: 143
B53: Постановка голоса, вокальный ансамбль: вокальный ансамбль | C53: мг | D53: 7 | F53: 6 | J53: 58 | L53: 107 | N53: 36 | P53: 71 | Q53: 0 | R53: 71 | AW53: 24 | AX53: 8 | AY53: 16 | BA53: 16 | BD53: 30 | BE53: 10 | BF53: 20 | BH53: 20 | BK53: 24 | BL53: 8 | BM53: 16 | BO53: 16 | BR53: 46 | BS53: 10 | BT53: 19 | BV53: 19 | EC53: 71
B54: Сценическое мастерство и сценическая речь | C54: гр | J54: 48 | L54: =N54+P54 -> 87 | N54: =V54+AC54+AJ54+AQ54+AX54+BE54+BL54+BS54 -> 29 | P54: =W54+AD54+AK54+AR54+AY54+BF54+BM54+BT54 -> 58 | Q54: =X54+AE54+AL54+AS54+AZ54+BG54+BN54+BU54 -> 58 | R54: =Y54+AF54+AM54+AT54+BA54+BH54+BO54+BV54 -> 0 | AP54: 30 | AQ54: 10 | AR54: 20 | AS54: 20 | BR54: 49 | BS54: 19 | BT54: 38 | BU54: 38 | ED54: 58
A55: МДК.01.04 | B55: Хоровой класс | C55: гр | F55: 1 | J55: 2347 | L55: =N55+P55 -> 426 | N55: =V55+AC55+AJ55+AQ55+AX55+BE55+BL55+BS55 -> 142 | P55: 284 | Q55: 0 | R55: 284 | U55: 141 | V55: 48 | W55: 96 | Y55: 96 | AB55: 175 | AC55: 60 | AD55: 120 | AF55: 120 | AI55: 21 | AJ55: 8 | AK55: 16 | AM55: 16 | AP55: 28 | AQ55: 10 | AR55: 20 | AT55: 20 | BK55: 60 | BL55: 16 | BM55: 32 | BO55: 32 | ED55: 284
A56: ПМ.02 | B56: Педагогичесская деятельность | D56: =LEN(D57)+LEN(D58)+LEN(D59)+LEN(D60)+LEN(D61)+LEN(D62)+LEN(D63)+LEN(D64)+LEN(D65)+LEN(D66) -> 3 | E56: =LEN(E57)+LEN(E58)+LEN(E59)+LEN(E60)+LEN(E61)+LEN(E62)+LEN(E63)+LEN(E64)+LEN(E65)+LEN(E66) -> 1 | F56: 1 | G56: 0 | H56: 0 | I56: 0 | J56: 11 | L56: =SUM(L57:L66) -> 811 | M56: 0 | N56: 271 | O56: 0 | P56: 540 | Q56: 460 | R56: =SUM(R57:R66) -> 80 | V56: =SUM(V57:V66) -> 0 | W56: 0 | X56: 0 | Y56: 0 | Z56: 0 | AA56: 0 | AB56: 0 | AC56: 0 | AD56: 0 | AE56: 0 | AF56: 0 | AG56: 0 | AH56: 0 | AI56: 48 | AJ56: 16 | AK56: 32 | AL56: 32 | AM56: 0 | AN56: 0 | AO56: 0 | AP56: 60 | AQ56: 40 | AR56: 80 | AS56: 40 | AT56: 40 | AU56: 0 | AV56: 0 | AW56: 120 | AX56: 40 | AY56: 80 | AZ56: 80 | BA56: 0 | BB56: 0 | BC56: 0 | BD56: 90 | BE56: 50 | BF56: 100 | BG56: 60 | BH56: 40 | BI56: 0 | BJ56: 0 | BK56: 144 | BL56: 48 | BM56: 96 | BN56: 96 | BO56: 0 | BP56: 0 | BQ56: 0 | BR56: 227 | BS56: 77 | BT56: 152 | BU56: 152 | BV56: 0 | BW56: 0 | BX56: 0 | BY56: 0 | BZ56: 0 | CA56: 0 | CB56: 0 | CC56: 0 | CD56: 0 | CE56: 0 | CF56: 0 | CG56: 0 | CH56: =SUM(CH57:CH66) -> 0 | CI56: 0 | CJ56: 0 | CK56: 0 | CL56: 0 | CM56: 0 | CN56: 0 | CO56: 0 | CP56: 0 | CQ56: 0 | CR56: 0 | CS56: 0 | CT56: 0 | CU56: 0 | CV56: 0 | CW56: 0 | CX56: 0 | CY56: 0 | CZ56: 0 | DA56: 0 | DB56: 0 | DC56: 0 | DD56: 0 | DE56: 0 | DF56: 0 | DG56: 0 | DH56: 0 | DI56: 0 | DJ56: 0 | DK56: 0 | DL56: 0 | DM56: 0 | DN56: 0 | DO56: 0 | DP56: 0 | DQ56: 0 | DR56: 0 | DS56: 0 | DT56: 0 | DU56: 0 | DV56: 0 | DW56: 0 | DX56: 0 | DY56: 0 | DZ56: 0 | EA56: 0 | EB56: 0 | EC56: =SUM(EC57:EC66) -> 422 | ED56: =SUM(ED57:ED66) -> 118
A57: МДК.02.01 | B57: Педагогические основы преподавания творческих дисциплин: основы педагогики | C57: гр | J57: 34 | L57: =N57+P57 -> 108 | N57: =V57+AC57+AJ57+AQ57+AX57+BE57+BL57+BS57 -> 36 | P57: =W57+AD57+AK57+AR57+AY57+BF57+BM57+BT57 -> 72 | Q57: =X57+AE57+AL57+AS57+AZ57+BG57+BN57+BU57 -> 72 | R57: =Y57+AF57+AM57+AT57+BA57+BH57+BO57+BV57 -> 0 | AI57: 48 | AJ57: 16 | AK57: 32 | AL57: 32 | AP57: 60 | AQ57: 20 | AR57: 40 | AS57: 40 | EC57: 72
B58: Педагогические основы преподавания творческих дисциплин: возрастная психология | C58: гр | J58: 56 | L58: 54 | N58: 18 | P58: 36 | Q58: 36 | R58: 0 | AW58: 24 | AX58: 8 | AY58: 16 | AZ58: 16 | BD58: 30 | BE58: 10 | BF58: 20 | BG58: 20 | EC58: 36
B59: Педагогические основы преподавания творческих ди сциплин: хоровая литература | C59: гр | D59: 6 | J59: 5 | L59: 156 | N59: 52 | P59: 104 | Q59: 104 | R59: 0 | AW59: 96 | AX59: 32 | AY59: 64 | AZ59: 64 | BD59: 60 | BE59: 20 | BF59: 40 | BG59: 40 | EC59: 104
B60: Педагогические основы преподавания творческих дисциплин: основы психологии музыкального восприятия | C60: гр | D60: 8 | L60: 57 | N60: 19 | P60: 38 | Q60: 38 | R60: 0 | BR60: 57 | BS60: 19 | BT60: 38 | BU60: 38 | ED60: 38
A61: МДК.02.02 | B61: Учебно-методическое обеспечение учебного процесса: изучение репертуара детских хоров | C61: инд | F61: 8 | J61: 7 | L61: 53 | N61: 18 | P61: 35 | Q61: 35 | R61: 0 | BK61: 24 | BL61: 8 | BM61: 16 | BN61: 16 | BR61: 28 | BS61: 10 | BT61: 19 | BU61: 19 | EC61: 35
B62: Учебно- методическое обеспечение учебного процесса: аранжировка для ансамбля и хора | C62: инд | J62: 78 | L62: 53 | N62: 18 | P62: 35 | Q62: 35 | R62: 0 | BK62: 24 | BL62: 8 | BM62: 16 | BN62: 16 | BR62: 28 | BS62: 10 | BT62: 19 | BU62: 19 | EC62: 35
B63: Учебно-методическое обеспечение учебного процесса: методика преподавания хоровых дисциплин | C63: гр | D63: 7 | J63: 8 | L63: 105 | N63: 35 | P63: 70 | Q63: 70 | R63: 0 | BK63: 48 | BL63: 16 | BM63: 32 | BN63: 32 | BR63: 57 | BS63: 19 | BT63: 38 | BU63: 38 | EC63: 70
B64: Учебно-методическое обеспечение учебного процесса: методика преподавания сольфеджио | C64: гр | J64: 7 | L64: 48 | N64: 16 | P64: 32 | Q64: 32 | R64: 0 | BK64: 48 | BL64: 16 | BM64: 32 | BN64: 32 | EC64: 32
B65: Хоровое сольфеджио | C65: гр | J65: 4 | L65: 120 | N65: 40 | P65: 80 | Q65: 0 | R65: 80 | AQ65: 20 | AR65: 40 | AT65: 40 | BE65: 20 | BF65: 40 | BH65: 40 | ED65: 80
B66: Учебно-методическое обеспечение учебного процесса: Физическая культура (ритмика) | C66: гр | E66: 8 | L66: 57 | N66: 19 | P66: 38 | Q66: 38 | R66: 0 | BR66: 57 | BS66: 19 | BT66: 38 | BU66: 38 | EC66: 38
A67: УП.00 | B67: Учебная практика | D67: =LEN(D68)+LEN(D69) -> 0 | E67: 0 | F67: 2 | G67: 0 | H67: 0 | I67: 0 | J67: =LEN(J68)+LEN(J69) -> 7 | L67: =SUM(L68:L69) -> 1026 | M67: =SUM(M68:M69) -> 0 | N67: 342 | O67: 0 | P67: 684 | Q67: 0 | R67: 684 | V67: =SUM(V68:V69) -> 0 | W67: 0 | X67: 0 | Y67: 0 | Z67: 0 | AA67: 0 | AB67: 0 | AC67: 0 | AD67: 0 | AE67: 0 | AF67: 0 | AG67: 0 | AH67: 0 | AI67: 136 | AJ67: 40 | AK67: 80 | AL67: 0 | AM67: 80 | AN67: 0 | AO67: 0 | AP67: 163 | AQ67: 50 | AR67: 100 | AS67: 0 | AT67: 100 | AU67: 0 | AV67: 0 | AW67: 193 | AX67: 64 | AY67: 128 | AZ67: 0 | BA67: 128 | BB67: 0 | BC67: 0 | BD67: 227 | BE67: 80 | BF67: 160 | BG67: 0 | BH67: 160 | BI67: 0 | BJ67: 0 | BK67: 83 | BL67: 32 | BM67: 64 | BN67: 0 | BO67: 64 | BP67: 0 | BQ67: 0 | BR67: 208 | BS67: 76 | BT67: 152 | BU67: 0 | BV67: 152 | BW67: 0 | BX67: 0 | BY67: 0 | BZ67: 0 | CA67: 0 | CB67: 0 | CC67: 0 | CD67: 0 | CE67: 0 | CF67: 0 | CG67: 0 | CH67: =SUM(CH68:CH69) -> 0 | CI67: 0 | CJ67: 0 | CK67: 0 | CL67: 0 | CM67: 0 | CN67: 0 | CO67: 0 | CP67: 0 | CQ67: 0 | CR67: 0 | CS67: 0 | CT67: 0 | CU67: 0 | CV67: 0 | CW67: 0 | CX67: 0 | CY67: 0 | CZ67: 0 | DA67: 0 | DB67: 0 | DC67: 0 | DD67: 0 | DE67: 0 | DF67: 0 | DG67: 0 | DH67: 0 | DI67: 0 | DJ67: 0 | DK67: 0 | DL67: 0 | DM67: 0 | DN67: 0 | DO67: 0 | DP67: 0 | DQ67: 0 | DR67: 0 | DS67: 0 | DT67: 0 | DU67: 0 | DV67: 0 | DW67: 0 | DX67: 0 | DY67: 0 | DZ67: 0 | EA67: 0 | EB67: 0 | EC67: =SUM(EC68:EC69) -> 684 | ED67: =SUM(ED68:ED69) -> 0
A68: УП.01 | B68: Хоровой класс | C68: гр | F68: 56 | J68: 3478 | L68: =N68+P68 -> 861 | N68: =V68+AC68+AJ68+AQ68+AX68+BE68+BL68+BS68 -> 287 | P68: =W68+AD68+AK68+AR68+AY68+BF68+BM68+BT68 -> 574 | Q68: 0 | R68: 574 | AI68: 136 | AJ68: 40 | AK68: 80 | AM68: 80 | AP68: 163 | AQ68: 50 | AR68: 100 | AT68: 100 | AW68: 145 | AX68: 48 | AY68: 96 | BA68: 96 | BD68: 163 | BE68: 60 | BF68: 120 | BH68: 120 | BK68: 83 | BL68: 32 | BM68: 64 | BO68: 64 | BR68: 151 | BS68: 57 | BT68: 114 | BV68: 114 | EC68: 574
A69: УП.02 | B69: Педагогическая работа | C69: инд | J69: 568 | L69: =N69+P69 -> 165 | N69: =V69+AC69+AJ69+AQ69+AX69+BE69+BL69+BS69 -> 55 | P69: 110 | Q69: 0 | R69: 110 | AW69: 48 | AX69: 16 | AY69: 32 | BA69: 32 | BD69: 64 | BE69: 20 | BF69: 40 | BH69: 40 | BR69: 57 | BS69: 19 | BT69: 38 | BV69: 38 | EC69: 110
A70: ПП | B70: Производственная (по профилю специальности) практика | N70: час | P70: =P71+P72 -> 180 | Q70: нед | R70: =R71+R72 -> 5 | W70: =SUM(W71:W74) -> 20 | Y70: =SUM(Y71:Y72) -> 20 | AD70: =SUM(AD71:AD72) -> 25 | AF70: =SUM(AF71:AF72) -> 25 | AK70: =SUM(AK71:AK72) -> 20 | AM70: =SUM(AM71:AM72) -> 20 | AR70: =SUM(AR71:AR72) -> 25 | AT70: =SUM(AT71:AT72) -> 25 | AY70: =SUM(AY71:AY72) -> 20 | BA70: =SUM(BA71:BA72) -> 20 | BF70: =SUM(BF71:BF72) -> 25 | BH70: =SUM(BH71:BH72) -> 25 | BM70: =SUM(BM71:BM72) -> 20 | BO70: =SUM(BO71:BO72) -> 20 | BT70: =SUM(BT71:BT72) -> 25 | BV70: =SUM(BV71:BV72) -> 25 | BY70: час | CB70: нед | CF70: час | CI70: нед | CM70: час | CP70: нед | CT70: час | CW70: нед | DA70: час | DD70: нед | DH70: час | DK70: нед | DO70: час | DR70: нед | DV70: час | DY70: нед
A71: ПП.01 | B71: Исполнительская (по профилю специальности) | N71: час | P71: =W71+AD71+AK71+AR71+AY71+BF71+BM71+BT71 -> 144 | Q71: нед | R71: 4 | W71: 16 | Y71: 16 | AD71: 20 | AF71: 20 | AK71: 16 | AM71: 16 | AR71: 20 | AT71: 20 | AY71: 16 | BA71: 16 | BF71: 20 | BH71: 20 | BM71: 16 | BO71: 16 | BT71: 20 | BV71: 20 | BY71: час | CB71: нед | CF71: час | CI71: нед | CM71: час | CP71: нед | CT71: час | CW71: нед | DA71: час | DD71: нед | DH71: час | DK71: нед | DO71: час | DR71: нед | DV71: час | DY71: нед
A72: ПП.02 | B72: Педагогическая практика | N72: час | P72: =W72+AD72+AK72+AR72+AY72+BF72+BM72+BT72 -> 36 | Q72: нед | R72: 1 | W72: 4 | Y72: 4 | AD72: 5 | AF72: 5 | AK72: 4 | AM72: 4 | AR72: 5 | AT72: 5 | AY72: 4 | BA72: 4 | BF72: 5 | BH72: 5 | BM72: 4 | BO72: 4 | BT72: 5 | BV72: 5 | BY72: час | CB72: нед | CF72: час | CI72: нед | CM72: час | CP72: нед | CT72: час | CW72: нед | DA72: час | DD72: нед | DH72: час | DK72: нед | DO72: час | DR72: нед | DV72: час | DY72: нед
A73: ПДП.00 | B73: Преддипломная практика | N73: час | P73: =W73+AD73+AK73+AR73+AY73+BF73+BM73+BT73 -> 36 | Q73: нед | R73: 1 | BM73: 16 | BO73: 16 | BT73: 20 | BV73: 20 | CB73: нед | CI73: нед | CP73: нед | CW73: нед | DD73: нед | DK73: нед | DR73: нед | DY73: нед
A74: ГИА.00 | B74: Государственная (итоговая) аттестация | Q74: нед | R74: 4 | BU74: нед | BV74: 4 | CB74: нед | CI74: нед | CP74: нед | CW74: нед | DD74: нед | DK74: нед | DR74: нед | DY74: нед
A75: ГИА.01 | B75: Подготовка выпускной квалификационной работы | Q75: нед | R75: 1 | BU75: нед | BV75: 1
A76: ГИА.02 | B76: Защита выпускной квалификационной работы | Q76: нед | R76: 1 | BU76: нед | BV76: 1 | CB76: нед | CI76: нед | CP76: нед | CW76: нед | DD76: нед | DK76: нед | DR76: нед | DY76: нед
A77: ГИА.03 | B77: Государственный экзамен(по видам инструментов) | Q77: нед | R77: 1 | BU77: нед | BV77: 1 | CB77: нед | CI77: нед | CP77: нед | CW77: нед | DD77: нед | DK77: нед | DR77: нед | DY77: нед
A78: ГИА.04 | B78: Государственный экзамен | Q78: нед | R78: 1 | BU78: нед | BV78: 1 | CB78: нед | CI78: нед | CP78: нед | CW78: нед | DD78: нед | DK78: нед | DR78: нед | DY78: нед
B79: ВСЕГО ПО ДИСЦИПЛИНАМ И МДК | D79: 27 | E79: 8 | F79: 26 | J79: 85 | L79: 7722 | M79: =SUM(M10,M28,M35,M44,M56,#REF!,M67) ->  | N79: 2574 | O79: =SUM(O10,O28,O35,O44,O56,#REF!,O67) ->  | P79: 5148 | Q79: 2669 | R79: 2479 | EC79: 4572 | ED79: 576
B80: Экзаменов | U80: 1 | X80: =SUM(IF(IFERROR(MID(D12:D21,SEARCH(1,D12:D21),1),0)="1",1,0),IF(IFERROR(MID(D21:D26,SEARCH(1,D21:D26),1),0)="1",1,0),IF(IFERROR(MID(D29:D33,SEARCH(1,D29:D33),1),0)="1",1,0),IF(IFERROR(MID(D36:D42,SEARCH(1,D36:D42),1),0)="1",1,0),IF(IFERROR(MID(D45:D53,SEARCH(1,D45:D53),1),0)="1",1,0),IF(IFERROR(MID(D57:D66,SEARCH(1,D57:D66),1),0)="1",1,0),IF(IFERROR(MID(#REF!,SEARCH(1,#REF!),1),0)="1",1,0),IF(IFERROR(MID(D68:D69,SEARCH(1,D68:D69),1),0)="1",1,0)) -> 1 | AB80: 4 | AE80: =SUM(IF(IFERROR(MID(D12:D21,SEARCH(2,D12:D21),1),0)="2",1,0),IF(IFERROR(MID(D21:D26,SEARCH(2,D21:D26),1),0)="2",1,0),IF(IFERROR(MID(D29:D33,SEARCH(2,D29:D33),1),0)="2",1,0),IF(IFERROR(MID(D36:D42,SEARCH(2,D36:D42),1),0)="2",1,0),IF(IFERROR(MID(D45:D53,SEARCH(2,D45:D53),1),0)="2",1,0),IF(IFERROR(MID(D57:D66,SEARCH(2,D57:D66),1),0)="2",1,0),IF(IFERROR(MID(#REF!,SEARCH(2,#REF!),1),0)="2",1,0),IF(IFERROR(MID(D68:D69,SEARCH(2,D68:D69),1),0)="2",1,0)) -> 5 | AI80: 1 | AL80: =SUM(IF(IFERROR(MID(D12:D21,SEARCH(3,D12:D21),1),0)="3",1,0),IF(IFERROR(MID(D21:D26,SEARCH(3,D21:D26),1),0)="3",1,0),IF(IFERROR(MID(D29:D33,SEARCH(3,D29:D33),1),0)="3",1,0),IF(IFERROR(MID(D36:D42,SEARCH(3,D36:D42),1),0)="3",1,0),IF(IFERROR(MID(D45:D53,SEARCH(3,D45:D53),1),0)="3",1,0),IF(IFERROR(MID(D57:D66,SEARCH(3,D57:D66),1),0)="3",1,0),IF(IFERROR(MID(#REF!,SEARCH(3,#REF!),1),0)="3",1,0),IF(IFERROR(MID(D68:D69,SEARCH(3,D68:D69),1),0)="3",1,0)) -> 3 | AP80: 5 | AS80: =SUM(IF(IFERROR(MID(D12:D21,SEARCH(4,D12:D21),1),0)="4",1,0),IF(IFERROR(MID(D21:D26,SEARCH(4,D21:D26),1),0)="4",1,0),IF(IFERROR(MID(D29:D33,SEARCH(4,D29:D33),1),0)="4",1,0),IF(IFERROR(MID(D36:D42,SEARCH(4,D36:D42),1),0)="4",1,0),IF(IFERROR(MID(D45:D53,SEARCH(4,D45:D53),1),0)="4",1,0),IF(IFERROR(MID(D57:D66,SEARCH(4,D57:D66),1),0)="4",1,0),IF(IFERROR(MID(#REF!,SEARCH(4,#REF!),1),0)="4",1,0),IF(IFERROR(MID(D68:D69,SEARCH(4,D68:D69),1),0)="4",1,0)) -> 5 | AW80: 1 | AZ80: =SUM(IF(IFERROR(MID(D12:D21,SEARCH(5,D12:D21),1),0)="5",1,0),IF(IFERROR(MID(D21:D26,SEARCH(5,D21:D26),1),0)="5",1,0),IF(IFERROR(MID(D29:D33,SEARCH(5,D29:D33),1),0)="5",1,0),IF(IFERROR(MID(D36:D42,SEARCH(5,D36:D42),1),0)="5",1,0),IF(IFERROR(MID(D45:D53,SEARCH(5,D45:D53),1),0)="5",1,0),IF(IFERROR(MID(D57:D66,SEARCH(5,D57:D66),1),0)="5",1,0),IF(IFERROR(MID(#REF!,SEARCH(5,#REF!),1),0)="5",1,0),IF(IFERROR(MID(D68:D69,SEARCH(5,D68:D69),1),0)="5",1,0)) -> 3 | BD80: 3 | BG80: =SUM(IF(IFERROR(MID(D12:D21,SEARCH(6,D12:D21),1),0)="6",1,0),IF(IFERROR(MID(D21:D26,SEARCH(6,D21:D26),1),0)="6",1,0),IF(IFERROR(MID(D29:D33,SEARCH(6,D29:D33),1),0)="6",1,0),IF(IFERROR(MID(D36:D42,SEARCH(6,D36:D42),1),0)="6",1,0),IF(IFERROR(MID(D45:D53,SEARCH(6,D45:D53),1),0)="6",1,0),IF(IFERROR(MID(D57:D66,SEARCH(6,D57:D66),1),0)="6",1,0),IF(IFERROR(MID(#REF!,SEARCH(6,#REF!),1),0)="6",1,0),IF(IFERROR(MID(D68:D69,SEARCH(6,D68:D69),1),0)="6",1,0)) -> 6 | BK80: 2 | BN80: =SUM(IF(IFERROR(MID(D12:D21,SEARCH(7,D12:D21),1),0)="7",1,0),IF(IFERROR(MID(D21:D26,SEARCH(7,D21:D26),1),0)="7",1,0),IF(IFERROR(MID(D29:D33,SEARCH(7,D29:D33),1),0)="7",1,0),IF(IFERROR(MID(D36:D42,SEARCH(7,D36:D42),1),0)="7",1,0),IF(IFERROR(MID(D45:D53,SEARCH(7,D45:D53),1),0)="7",1,0),IF(IFERROR(MID(D57:D66,SEARCH(7,D57:D66),1),0)="7",1,0),IF(IFERROR(MID(#REF!,SEARCH(7,#REF!),1),0)="7",1,0),IF(IFERROR(MID(D68:D69,SEARCH(7,D68:D69),1),0)="7",1,0)) -> 3 | BR80: 6 | BU80: 2
B81: Зачётов | U81: 1 | X81: 1 | AB81: 4 | AE81: 1 | AI81: 1 | AL81: 1 | AP81: 5 | AS81: 1 | AW81: 1 | AZ81: =SUM(IF(IFERROR(MID(E12:E21,SEARCH(5,E12:E21),1),0)="5",1,0),IF(IFERROR(MID(E21:E26,SEARCH(5,E21:E26),1),0)="5",1,0),IF(IFERROR(MID(E29:E33,SEARCH(5,E29:E33),1),0)="5",1,0),IF(IFERROR(MID(E36:E42,SEARCH(5,E36:E42),1),0)="5",1,0),IF(IFERROR(MID(E45:E53,SEARCH(5,E45:E53),1),0)="5",1,0),IF(IFERROR(MID(E57:E66,SEARCH(5,E57:E66),1),0)="5",1,0),IF(IFERROR(MID(#REF!,SEARCH(5,#REF!),1),0)="5",1,0),IF(IFERROR(MID(E68:E69,SEARCH(5,E68:E69),1),0)="5",1,0)) -> 1 | BD81: 3 | BG81: =SUM(IF(IFERROR(MID(E12:E21,SEARCH(6,E12:E21),1),0)="6",1,0),IF(IFERROR(MID(E21:E26,SEARCH(6,E21:E26),1),0)="6",1,0),IF(IFERROR(MID(E29:E33,SEARCH(6,E29:E33),1),0)="6",1,0),IF(IFERROR(MID(E36:E42,SEARCH(6,E36:E42),1),0)="6",1,0),IF(IFERROR(MID(E45:E53,SEARCH(6,E45:E53),1),0)="6",1,0),IF(IFERROR(MID(E57:E66,SEARCH(6,E57:E66),1),0)="6",1,0),IF(IFERROR(MID(#REF!,SEARCH(6,#REF!),1),0)="6",1,0),IF(IFERROR(MID(E68:E69,SEARCH(6,E68:E69),1),0)="6",1,0)) -> 1 | BK81: 2 | BN81: =SUM(IF(IFERROR(MID(E12:E21,SEARCH(7,E12:E21),1),0)="7",1,0),IF(IFERROR(MID(E21:E26,SEARCH(7,E21:E26),1),0)="7",1,0),IF(IFERROR(MID(E29:E33,SEARCH(7,E29:E33),1),0)="7",1,0),IF(IFERROR(MID(E36:E42,SEARCH(7,E36:E42),1),0)="7",1,0),IF(IFERROR(MID(E45:E53,SEARCH(7,E45:E53),1),0)="7",1,0),IF(IFERROR(MID(E57:E66,SEARCH(7,E57:E66),1),0)="7",1,0),IF(IFERROR(MID(#REF!,SEARCH(7,#REF!),1),0)="7",1,0),IF(IFERROR(MID(E68:E69,SEARCH(7,E68:E69),1),0)="7",1,0)) -> 1 | BR81: 6 | BU81: =SUM(IF(IFERROR(MID(E12:E21,SEARCH(8,E12:E21),1),0)="8",1,0),IF(IFERROR(MID(E21:E26,SEARCH(8,E21:E26),1),0)="8",1,0),IF(IFERROR(MID(E29:E33,SEARCH(8,E29:E33),1),0)="8",1,0),IF(IFERROR(MID(E36:E42,SEARCH(8,E36:E42),1),0)="8",1,0),IF(IFERROR(MID(E45:E53,SEARCH(8,E45:E53),1),0)="8",1,0),IF(IFERROR(MID(E57:E66,SEARCH(8,E57:E66),1),0)="8",1,0),IF(IFERROR(MID(#REF!,SEARCH(8,#REF!),1),0)="8",1,0),IF(IFERROR(MID(E68:E69,SEARCH(8,E68:E69),1),0)="8",1,0)) -> 1
B82: Дифференицрованных зачётов | U82: 3 | X82: =SUM(IF(IFERROR(MID(F12:F21,SEARCH(1,F12:F21),1),0)="1",1,0),IF(IFERROR(MID(F21:F26,SEARCH(1,F21:F26),1),0)="1",1,0),IF(IFERROR(MID(F29:I33,SEARCH(1,F29:I33),1),0)="1",1,0),IF(IFERROR(MID(F36:F42,SEARCH(1,F36:F42),1),0)="1",1,0),IF(IFERROR(MID(F45:F53,SEARCH(1,F45:I53),1),0)="1",1,0),IF(IFERROR(MID(F57:I66,SEARCH(1,F57:F66),1),0)="1",1,0),IF(IFERROR(MID(#REF!,SEARCH(1,#REF!),1),0)="1",1,0),IF(IFERROR(MID(F68:I69,SEARCH(1,F68:I69),1),0)="1",1,0)) -> 3 | AB82: 3 | AE82: =SUM(IF(IFERROR(MID(F12:F21,SEARCH(2,F12:F21),1),0)="2",1,0),IF(IFERROR(MID(F21:F26,SEARCH(2,F21:F26),1),0)="2",1,0),IF(IFERROR(MID(F29:H33,SEARCH(2,F29:I33),1),0)="2",1,0),IF(IFERROR(MID(F36:F42,SEARCH(2,F36:F42),1),0)="2",1,0),IF(IFERROR(MID(F45:I53,SEARCH(2,F45:F53),1),0)="2",1,0),IF(IFERROR(MID(F57:F66,SEARCH(2,F57:F66),1),0)="2",1,0),IF(IFERROR(MID(#REF!,SEARCH(2,#REF!),1),0)="2",1,0),IF(IFERROR(MID(F68:F69,SEARCH(2,F68:I69),1),0)="2",1,0)) -> 3 | AI82: 1 | AL82: =SUM(IF(IFERROR(MID(F12:F21,SEARCH(3,F12:F21),1),0)="3",1,0),IF(IFERROR(MID(F21:F26,SEARCH(3,F21:F26),1),0)="3",1,0),IF(IFERROR(MID(F29:H33,SEARCH(3,F29:F33),1),0)="3",1,0),IF(IFERROR(MID(F36:F42,SEARCH(3,F36:F42),1),0)="3",1,0),IF(IFERROR(MID(F45:I53,SEARCH(3,F45:F53),1),0)="3",1,0),IF(IFERROR(MID(F57:F66,SEARCH(3,F57:F66),1),0)="3",1,0),IF(IFERROR(MID(#REF!,SEARCH(3,#REF!),1),0)="3",1,0),IF(IFERROR(MID(F68:F69,SEARCH(3,F68:I69),1),0)="3",1,0)) -> 2 | AP82: 5 | AS82: =SUM(IF(IFERROR(MID(F12:F21,SEARCH(4,F12:F21),1),0)="4",1,0),IF(IFERROR(MID(F21:F26,SEARCH(4,F21:F26),1),0)="4",1,0),IF(IFERROR(MID(F29:F33,SEARCH(4,F29:F33),1),0)="4",1,0),IF(IFERROR(MID(F36:I42,SEARCH(4,F36:F42),1),0)="4",1,0),IF(IFERROR(MID(F45:I53,SEARCH(4,F45:I53),1),0)="4",1,0),IF(IFERROR(MID(F57:F66,SEARCH(4,F57:F66),1),0)="4",1,0),IF(IFERROR(MID(#REF!,SEARCH(4,#REF!),1),0)="4",1,0),IF(IFERROR(MID(F68:F69,SEARCH(4,F68:F69),1),0)="4",1,0)) -> 4 | AW82: 1 | AZ82: =SUM(IF(IFERROR(MID(F12:F21,SEARCH(5,F12:F21),1),0)="5",1,0),IF(IFERROR(MID(F21:F26,SEARCH(5,F21:F26),1),0)="5",1,0),IF(IFERROR(MID(F29:F33,SEARCH(5,F29:F33),1),0)="5",1,0),IF(IFERROR(MID(F36:F42,SEARCH(5,F36:F42),1),0)="5",1,0),IF(IFERROR(MID(F45:F53,SEARCH(5,F45:F53),1),0)="5",1,0),IF(IFERROR(MID(F57:F66,SEARCH(5,F57:F66),1),0)="5",1,0),IF(IFERROR(MID(#REF!,SEARCH(5,#REF!),1),0)="5",1,0),IF(IFERROR(MID(F68:F69,SEARCH(5,F68:I69),1),0)="5",1,0)) -> 3 | BD82: 3 | BG82: =SUM(IF(IFERROR(MID(F12:F21,SEARCH(6,F12:F21),1),0)="6",1,0),IF(IFERROR(MID(F21:F26,SEARCH(6,F21:F26),1),0)="6",1,0),IF(IFERROR(MID(F29:F33,SEARCH(6,F29:F33),1),0)="6",1,0),IF(IFERROR(MID(F36:F42,SEARCH(6,F36:F42),1),0)="6",1,0),IF(IFERROR(MID(F45:I53,SEARCH(6,F45:F53),1),0)="6",1,0),IF(IFERROR(MID(F57:F66,SEARCH(6,F57:F66),1),0)="6",1,0),IF(IFERROR(MID(#REF!,SEARCH(6,#REF!),1),0)="6",1,0),IF(IFERROR(MID(F68:I69,SEARCH(6,F68:I69),1),0)="6",1,0)) -> 3 | BK82: 2 | BN82: =SUM(IF(IFERROR(MID(F12:F21,SEARCH(7,F12:F21),1),0)="7",1,0),IF(IFERROR(MID(F21:F26,SEARCH(7,F21:F26),1),0)="7",1,0),IF(IFERROR(MID(F29:F33,SEARCH(7,F29:F33),1),0)="7",1,0),IF(IFERROR(MID(F36:F42,SEARCH(7,F36:F42),1),0)="7",1,0),IF(IFERROR(MID(F45:F53,SEARCH(7,F45:I53),1),0)="7",1,0),IF(IFERROR(MID(F57:F66,SEARCH(7,F57:I66),1),0)="7",1,0),IF(IFERROR(MID(#REF!,SEARCH(7,#REF!),1),0)="7",1,0),IF(IFERROR(MID(F68:I69,SEARCH(7,F68:I69),1),0)="7",1,0)) -> 4 | BR82: 6 | BU82: =SUM(IF(IFERROR(MID(F12:F21,SEARCH(8,F12:F21),1),0)="8",1,0),IF(IFERROR(MID(F21:F26,SEARCH(8,F21:F26),1),0)="8",1,0),IF(IFERROR(MID(F29:F33,SEARCH(8,F29:F33),1),0)="8",1,0),IF(IFERROR(MID(F36:F42,SEARCH(8,F36:F42),1),0)="8",1,0),IF(IFERROR(MID(F45:F53,SEARCH(8,F45:I53),1),0)="8",1,0),IF(IFERROR(MID(F57:F66,SEARCH(8,F57:F66),1),0)="8",1,0),IF(IFERROR(MID(#REF!,SEARCH(8,#REF!),1),0)="8",1,0),IF(IFERROR(MID(F68:I69,SEARCH(8,F68:F69),1),0)="8",1,0)) -> 4
B83: Контрольных работ (итоговые письм. классные)
B84: Контрольных работ (домашние)

Sheet Кабинеты
B1: № | C1: Наименование
B2: 1 | C2: Кабинеты: русского языка и литературы;
B3: 2 | C3: математики и информатики;
B4: 3 | C4: иностранного языка;
B5: 4 | C5: истории, географии и обществознания;
B6: 5 | C6: гуманитарных и социально-экономических дисциплин;
B7: 6 | C7: мировой художественной культуры;
B8: 7 | C8: музыкально-теоретических дисциплин;
B9: 8 | C9: музыкальной литературы.
B10: 9 | C10: Учебные классы: для групповых и индивидуальных занятий;
B11: 10 | C11: для занятий хоровым классом со специализированным оборудованием;
B12: 11 | C12: для проведения оркестровых и ансамблевых занятий.
B13: 12 | C13: Залы: концертный зал от 100 посадочных мест с концертными роялями, пультами и звукотехническим оборудованием; малый концертный зал от 30 посадочных мест с концертным роялем
B14: 13 | C14: библиотека, читальный зал с выходом в Интернет.
B15: 14 | C15: помещения для работы со специализированными материалами (фонотека, видеотека)
B16: 15 | C16: Спортивный комплекс: спортивныйзал; место для стрельбы.

Sheet Start (hidden)
